bitfinex/quotes_BTCUSD_20251217
["timestamp","ask_amount","ask_price","bid_price","bid_amount"]
[1765946089802,0.24539225,87165.0,87164.0,0.0031858]
[1765946089980,0.26871225,87165.0,87164.0,0.0031858]
[1765946090198,0.26871225,87165.0,87164.0,0.002]
[1765946090794,0.22947358,87156.0,87155.0,0.11354081]
[1765946091010,0.22947358,87156.0,87155.0,0.1635592]
[1765946091443,0.26873358,87156.0,87155.0,0.05001839]
[1765946092191,0.26873358,87156.0,87155.0,0.05101839]
[1765946092591,0.26873358,87156.0,87155.0,0.001]
[1765946093328,0.26873358,87156.0,87155.0,0.002]
[1765946093535,0.26873358,87156.0,87148.0,0.05001839]
[1765946093536,0.22949201,87149.0,87148.0,0.05001839]
[1765946094339,0.03926,87146.0,87138.0,0.0002]
[1765946094543,0.04334321,87146.0,87138.0,0.0002]
[1765946095189,0.06146321,87146.0,87138.0,0.0002]
[1765946095390,0.057292,87146.0,87138.0,0.0002]
[1765946095592,0.1711521,87146.0,87138.0,0.0002]
[1765946095841,0.17575137,87146.0,87138.0,0.0002]
[1765946096247,0.25672835,87139.0,87138.0,0.0002]
[1765946096559,0.39390845,87139.0,87138.0,0.0002]
[1765946097311,0.39433552,87139.0,87138.0,0.0002]
[1765946097512,0.39733552,87139.0,87138.0,0.0002]
[1765946097715,0.39933552,87139.0,87138.0,0.0002]
[1765946099989,0.28547542,87139.0,87138.0,0.0002]
[1765946100726,0.39933552,87139.0,87138.0,0.0002]
[1765946101929,0.1643901,87134.0,87133.0,4.19572706]
[1765946102128,0.1825101,87134.0,87133.0,4.19572706]
[1765946102334,0.41204162,87134.0,87133.0,4.19572706]
[1765946102836,0.73724494,87134.0,87133.0,4.19572706]
[1765946103238,0.73924494,87134.0,87133.0,4.19572706]
[1765946103975,0.74024494,87134.0,87133.0,4.19572706]
[1765946104604,0.74424494,87134.0,87133.0,4.19572706]
[1765946106244,0.72612494,87134.0,87133.0,4.19572706]
[1765946106819,0.74424494,87134.0,87133.0,4.19572706]
[1765946107016,0.74428494,87134.0,87133.0,4.19572706]
[1765946107404,0.72612494,87134.0,87133.0,4.19572706]
[1765946107993,0.74428494,87134.0,87133.0,4.19572706]
[1765946108186,0.72612494,87134.0,87133.0,4.19572706]
[1765946108387,0.74428494,87134.0,87133.0,4.19572706]
[1765946108590,0.74128494,87134.0,87133.0,4.19572706]
[1765946108795,0.74328494,87134.0,87133.0,4.19572706]
[1765946109135,0.85961609,87134.0,87133.0,4.19572706]
[1765946109359,0.73928494,87134.0,87133.0,4.19572706]
[1765946109894,0.73728494,87134.0,87133.0,4.19572706]
[1765946110095,0.74028494,87134.0,87133.0,4.19572706]
[1765946110296,0.74328494,87134.0,87133.0,4.19572706]
[1765946110505,0.74028494,87134.0,87133.0,4.19572706]
[1765946110687,0.85661609,87134.0,87133.0,4.19572706]
[1765946110909,0.74328494,87134.0,87133.0,4.19572706]
[1765946111884,0.74028494,87134.0,87133.0,4.19572706]
[1765946112104,0.72212494,87134.0,87133.0,4.19572706]
[1765946112425,0.74328494,87134.0,87133.0,4.19572706]
[1765946112833,0.61126484,87134.0,87133.0,4.19572706]
[1765946112986,0.62942484,87134.0,87133.0,4.19572706]
[1765946113189,0.62342484,87134.0,87133.0,4.19572706]
[1765946113390,0.73928494,87134.0,87133.0,4.19572706]
[1765946113589,0.74128494,87134.0,87133.0,4.19572706]
[1765946113788,0.73928494,87134.0,87133.0,4.19572706]
[1765946113972,0.31656484,87134.0,87133.0,4.19572706]
[1765946114173,0.31756484,87134.0,87133.0,4.19572706]
[1765946114805,0.31556484,87134.0,87133.0,4.19572706]
[1765946115133,0.31656484,87134.0,87133.0,4.19572706]
[1765946115336,0.43289599,87134.0,87133.0,4.19572706]
[1765946115481,0.54675609,87134.0,87133.0,4.19572706]
[1765946116064,0.43042494,87134.0,87133.0,4.19572706]
[1765946116525,0.37389439,87134.0,87133.0,4.19572706]
[1765946121688,0.35889439,87134.0,87133.0,4.19572706]
[1765946122814,0.41542494,87134.0,87133.0,4.19572706]
[1765946125507,0.30156484,87134.0,87133.0,4.19572706]
[1765946125733,0.37705439,87134.0,87133.0,4.19572706]
[1765946129920,0.43358494,87134.0,87133.0,4.19572706]
[1765946137006,0.72428494,87134.0,87133.0,4.19572706]
[1765946137182,0.75958122,87134.0,87133.0,4.19572706]
[1765946137930,0.75958122,87134.0,87133.0,3.56599253]
[1765946138137,0.92517222,87134.0,87133.0,3.04876112]
[1765946138343,0.92517222,87134.0,87133.0,2.95566254]
[1765946138543,1.07227739,87134.0,87133.0,2.65624362]
[1765946138757,1.04150337,87134.0,87133.0,2.51772319]
[1765946138998,1.04150337,87134.0,87133.0,2.18385267]
[1765946138999,1.09052176,87134.0,87133.0,2.18385267]
[1765946139212,1.21442176,87134.0,87133.0,2.18385267]
[1765946139419,1.21142176,87134.0,87133.0,2.18385267]
[1765946139640,1.23323869,87134.0,87133.0,1.02858713]
[1765946139853,1.23623869,87134.0,87133.0,0.84057624]
[1765946140075,1.23923869,87134.0,87133.0,0.80033156]
[1765946140496,1.28019729,87134.0,87133.0,0.80033156]
[1765946140698,1.23623869,87134.0,87133.0,0.02582276]
[1765946140905,0.29603308,87129.0,87128.0,1e-08]
[1765946141096,2.9575668,87129.0,87128.0,1e-08]
[1765946141282,2.9575668,87129.0,87100.0,0.006]
[1765946141283,0.68543858,87101.0,87100.0,0.006]
[1765946141599,0.70359858,87101.0,87100.0,0.006]
[1765946141960,0.71508372,87101.0,87100.0,0.006]
[1765946142389,0.71608372,87101.0,87100.0,0.006]
[1765946144181,0.71708372,87101.0,87100.0,0.006]
[1765946145039,0.72815446,87101.0,87100.0,0.006]
[1765946145422,0.72814909,87101.0,87100.0,0.006]
[1765946145585,0.72714909,87101.0,87100.0,0.006]
[1765946145977,0.72814909,87101.0,87100.0,0.006]
[1765946146210,0.71651079,87101.0,87100.0,0.006]
[1765946146410,2.71651079,87101.0,87100.0,0.006]
[1765946146655,0.8989786,87101.0,87100.0,0.006]
[1765946146858,0.9009786,87101.0,87100.0,0.006]
[1765946147315,0.8999786,87101.0,87100.0,0.006]
[1765946147518,0.8979786,87101.0,87100.0,0.006]
[1765946147725,0.8848186,87101.0,87100.0,0.006]
[1765946147903,0.9029786,87101.0,87100.0,0.006]
[1765946148121,1.01930975,87101.0,87100.0,0.006]
[1765946148310,1.00867594,87101.0,87100.0,0.006]
[1765946150426,1.00867594,87101.0,87100.0,0.00688175]
[1765946153845,0.84021079,87101.0,87100.0,0.00688175]
[1765946154052,0.82205079,87101.0,87100.0,0.00688175]
[1765946154223,0.84021079,87101.0,87100.0,0.00688175]
[1765946155059,0.72051079,87101.0,87100.0,0.00688175]
[1765946155225,0.70235079,87101.0,87100.0,0.00688175]
[1765946155392,0.72051079,87101.0,87100.0,0.00688175]
[1765946156179,0.83384194,87101.0,87100.0,0.00688175]
[1765946156312,0.83484194,87101.0,87100.0,0.00688175]
[1765946156694,0.83284194,87101.0,87100.0,0.00688175]
[1765946160209,1.12841194,87101.0,87100.0,0.00688175]
[1765946162438,1.15291486,87101.0,87100.0,0.00688175]
[1765946163250,1.16355441,87101.0,87100.0,0.00688175]
[1765946164328,1.16356009,87101.0,87100.0,0.00688175]
[1765946166346,1.21357848,87101.0,87100.0,0.00688175]
[1765946166548,1.16356009,87101.0,87100.0,0.00688175]
[1765946167061,1.01993209,87101.0,87100.0,0.00688175]
[1765946167387,1.02293209,87101.0,87100.0,0.00688175]
[1765946167600,1.02593209,87101.0,87100.0,0.00688175]
[1765946168624,1.02593209,87101.0,87100.0,1e-08]
[1765946168625,1.07595048,87101.0,87100.0,1e-08]
[1765946170629,1.07595048,87101.0,87066.0,0.05]
[1765946170630,0.73957825,87067.0,87066.0,0.05]
[1765946170909,0.75773825,87067.0,87066.0,0.05]
[1765946171346,0.79227056,87067.0,87066.0,0.05]
[1765946171698,0.79327056,87067.0,87066.0,0.05]
[1765946171904,0.67941046,87067.0,87066.0,0.05]
[1765946172100,0.67941046,87067.0,87066.0,0.051]
[1765946172101,0.79327056,87067.0,87066.0,0.051]
[1765946172360,0.62671815,87067.0,87066.0,0.051]
[1765946172545,0.62671815,87067.0,87066.0,0.05]
[1765946172546,0.74057825,87067.0,87066.0,0.05]
[1765946172860,0.73957825,87067.0,87066.0,0.05]
[1765946173216,0.74057825,87067.0,87066.0,0.05]
[1765946176264,0.74057825,87067.0,87066.0,0.0510713]
[1765946178513,0.77581183,87067.0,87066.0,0.0510713]
[1765946179542,0.73957825,87067.0,87066.0,0.0510713]
[1765946179998,0.74057825,87067.0,87066.0,0.0510713]
[1765946180402,0.74157825,87067.0,87066.0,0.0510713]
[1765946180736,0.74057825,87067.0,87066.0,0.0510713]
[1765946180945,0.74157825,87067.0,87066.0,0.0510713]
[1765946181552,0.76613351,87067.0,87066.0,0.0510713]
[1765946182984,0.62771815,87067.0,87066.0,0.0510713]
[1765946184480,0.68514758,87067.0,87066.0,0.0510713]
[1765946184674,0.62771815,87067.0,87066.0,0.0510713]
[1765946185304,0.68514758,87067.0,87066.0,0.0510713]
[1765946185609,0.7440493,87067.0,87066.0,0.0510713]
[1765946185774,0.80147873,87067.0,87066.0,0.0510713]
[1765946185955,0.74157825,87067.0,87066.0,0.0510713]
[1765946186160,0.62771815,87067.0,87066.0,0.0510713]
[1765946187347,0.74157825,87067.0,87066.0,0.0510713]
[1765946188899,0.33701815,87067.0,87066.0,0.0510713]
[1765946189470,0.002,87067.0,87066.0,0.0522571]
[1765946189746,0.22970815,87067.0,87066.0,0.0522571]
[1765946190079,0.22970815,87067.0,87066.0,0.0510713]
[1765946190080,0.31450815,87067.0,87066.0,0.0510713]
[1765946190212,0.31350815,87067.0,87066.0,0.0520713]
[1765946190617,0.31350815,87067.0,87066.0,0.0510713]
[1765946190825,0.42736825,87067.0,87066.0,0.0510713]
[1765946191144,0.42736825,87067.0,87066.0,0.0530713]
[1765946191359,0.71806825,87067.0,87066.0,0.0530713]
[1765946191764,0.71906825,87067.0,87066.0,0.0510713]
[1765946192116,0.71806825,87067.0,87066.0,0.0510713]
[1765946192388,0.71906825,87067.0,87066.0,0.0510713]
[1765946192593,0.23070815,87067.0,87066.0,0.0510713]
[1765946192814,0.31450815,87067.0,87066.0,0.0510713]
[1765946192992,0.80357794,87067.0,87066.0,0.0530713]
[1765946193140,0.71906825,87067.0,87066.0,0.0530713]
[1765946193340,0.71906825,87067.0,87066.0,0.0510713]
[1765946193801,0.71906825,87067.0,87066.0,0.0520713]
[1765946195187,0.74366475,87067.0,87066.0,0.0520713]
[1765946195386,0.71906825,87067.0,87066.0,0.0520713]
[1765946195584,0.71806825,87067.0,87066.0,0.0520713]
[1765946195795,0.71806825,87067.0,87066.0,0.0510713]
[1765946195990,0.8343994,87067.0,87066.0,0.0510713]
[1765946196197,0.85900302,87067.0,87066.0,0.0510713]
[1765946196452,0.74267187,87067.0,87066.0,0.0510713]
[1765946197705,0.77720517,87067.0,87066.0,0.0510713]
[1765946198887,0.77820517,87067.0,87066.0,0.0510713]
[1765946199258,0.77920517,87067.0,87066.0,0.0510713]
[1765946202773,0.78988949,87067.0,87066.0,0.0510713]
[1765946202930,0.93697154,87067.0,87066.0,0.0510713]
[1765946203135,0.90622064,87067.0,87066.0,1e-08]
[1765946204479,1.41875464,87067.0,87066.0,1e-08]
[1765946205237,1.44850554,87067.0,87066.0,1e-08]
[1765946205438,1.41775464,87067.0,87066.0,1e-08]
[1765946205625,1.41875464,87067.0,87066.0,1e-08]
[1765946206026,1.42075464,87067.0,87066.0,1e-08]
[1765946206647,2.54886544,87062.0,87061.0,1e-08]
[1765946206906,1.18164921,87062.0,87061.0,1e-08]
[1765946208215,1.15232445,87062.0,87061.0,1e-08]
[1765946209382,1.15332445,87062.0,87061.0,1e-08]
[1765946210136,1.15232445,87062.0,87061.0,1e-08]
[1765946210313,1.2686556,87062.0,87061.0,1e-08]
[1765946210897,1.2676556,87062.0,87061.0,1e-08]
[1765946211098,1.15332445,87062.0,87061.0,1e-08]
[1765946211500,1.15532445,87062.0,87061.0,1e-08]
[1765946211912,1.15332445,87062.0,87061.0,1e-08]
[1765946212315,1.15432445,87062.0,87061.0,1e-08]
[1765946216931,1.15892964,87062.0,87061.0,1e-08]
[1765946217132,1.27526079,87062.0,87061.0,1e-08]
[1765946220255,1.30601262,87062.0,87061.0,1e-08]
[1765946221332,1.27526079,87062.0,87061.0,1e-08]
[1765946222958,0.73366047,87051.0,87050.0,0.0001]
[1765946223172,0.77642409,87051.0,87050.0,0.0001]
[1765946223387,0.88927505,87051.0,87050.0,0.00035218]
[1765946223585,0.923814,87051.0,87050.0,0.00035218]
[1765946224184,0.78635942,87051.0,87050.0,0.00035218]
[1765946224424,0.8119539,87051.0,87050.0,0.00035218]
[1765946227901,0.82262974,87051.0,87050.0,0.00035218]
[1765946229563,0.8119539,87051.0,87050.0,0.00035218]
[1765946230373,0.82263572,87051.0,87050.0,0.00035218]
[1765946230587,0.78735942,87051.0,87050.0,0.00035218]
[1765946230790,0.33566932,87051.0,87050.0,0.00153798]
[1765946230995,0.27017037,87051.0,87050.0,0.00153798]
[1765946231202,0.25201037,87051.0,87050.0,0.00153798]
[1765946231444,0.23075037,87051.0,87050.0,0.00153798]
[1765946232089,0.23075037,87051.0,87050.0,0.00253798]
[1765946233686,0.22975037,87051.0,87050.0,0.00253798]
[1765946235106,0.22975037,87051.0,87050.0,0.00153798]
[1765946235269,0.30195037,87051.0,87050.0,0.00153798]
[1765946235466,0.30295037,87051.0,87050.0,0.00153798]
[1765946236079,0.30295037,87051.0,87050.0,0.00035218]
[1765946236366,0.52971121,87051.0,87050.0,0.00235218]
[1765946236517,0.82041121,87051.0,87050.0,0.00235218]
[1765946236719,0.87955948,87051.0,87050.0,0.00235218]
[1765946237328,0.87855948,87051.0,87050.0,0.00035218]
[1765946237711,0.87955948,87051.0,87050.0,0.00035218]
[1765946237897,0.87855948,87051.0,87050.0,0.00035218]
[1765946238313,0.87955948,87051.0,87050.0,0.00035218]
[1765946238721,0.76665874,87051.0,87050.0,0.00035218]
[1765946240933,0.77733788,87051.0,87050.0,0.00035218]
[1765946243551,0.66347778,87051.0,87050.0,0.00035218]
[1765946243798,0.77733788,87051.0,87050.0,0.00035218]
[1765946248644,0.77733788,87051.0,87045.0,0.0002]
[1765946248645,0.72577367,87046.0,87045.0,0.0002]
[1765946248846,0.76854188,87046.0,87045.0,0.0002]
[1765946249147,0.88487303,87046.0,87045.0,0.0002]
[1765946249350,0.86026482,87046.0,87045.0,0.0002]
[1765946249557,1.07926628,87046.0,87045.0,0.0002]
[1765946249758,1.07926628,87046.0,87045.0,0.0012]
[1765946250161,0.77920528,87046.0,87045.0,0.0012]
[1765946250370,1.19505228,87046.0,87045.0,0.0012]
[1765946250568,1.16644228,87046.0,87045.0,0.0012]
[1765946250844,0.77920528,87046.0,87045.0,0.0012]
[1765946251078,0.89553643,87046.0,87045.0,0.0012]
[1765946251299,0.77920528,87046.0,87045.0,0.0012]
[1765946251516,0.76852995,87046.0,87045.0,0.0012]
[1765946252611,0.72577367,87046.0,87045.0,0.0012]
[1765946252822,0.65357367,87046.0,87045.0,0.0012]
[1765946253088,0.55787357,87046.0,87045.0,0.0012]
[1765946253297,0.53862357,87046.0,87045.0,0.0012]
[1765946254075,0.72564367,87046.0,87045.0,0.0012]
[1765946257708,0.53862357,87046.0,87045.0,0.0012]
[1765946258081,0.24792357,87046.0,87045.0,0.0012]
[1765946259089,0.42963367,87046.0,87045.0,0.0012]
[1765946259294,0.38834367,87046.0,87045.0,0.0012]
[1765946259509,0.38834367,87046.0,87045.0,0.0002]
[1765946259842,0.38934367,87046.0,87045.0,0.0022]
[1765946260054,0.36278367,87046.0,87045.0,0.0022]
[1765946260277,0.24892357,87046.0,87045.0,0.0022]
[1765946260989,0.31677357,87046.0,87045.0,0.0022]
[1765946261418,0.27548357,87046.0,87045.0,0.0022]
[1765946261798,0.24892357,87046.0,87045.0,0.0022]
[1765946263231,0.31677357,87046.0,87045.0,0.0022]
[1765946263992,0.24892357,87046.0,87045.0,0.0033858]
[1765946267754,0.24892357,87046.0,87045.0,0.0301158]
[1765946267955,0.23076357,87046.0,87045.0,0.0701758]
[1765946270263,0.001,87046.0,87045.0,0.0701758]
[1765946270464,0.23076357,87046.0,87045.0,0.12183533]
[1765946270698,0.23076357,87046.0,87045.0,0.0701758]
[1765946271257,0.23076357,87046.0,87045.0,0.0681758]
[1765946271513,0.22976319,87047.0,87046.0,0.06679]
[1765946271671,0.22976319,87047.0,87046.0,0.0679758]
[1765946272676,0.22976319,87047.0,87046.0,0.0699758]
[1765946272877,0.23076319,87047.0,87046.0,0.0699758]
[1765946274037,0.23076319,87047.0,87046.0,0.15944136]
[1765946274173,0.23076319,87047.0,87046.0,0.0886558]
[1765946281156,0.25732319,87047.0,87046.0,0.002]
[1765946281468,0.23076319,87047.0,87046.0,0.002]
[1765946281840,0.23076319,87047.0,87045.0,0.0002]
[1765946282053,0.23076319,87047.0,87046.0,0.002]
[1765946282255,0.22976319,87047.0,87046.0,0.002]
[1765946282863,0.22976319,87047.0,87045.0,0.0002]
[1765946283092,0.22976319,87047.0,87045.0,0.0022]
[1765946284405,0.06575,87046.0,87045.0,0.0002]
[1765946284612,0.1796101,87046.0,87045.0,0.0002]
[1765946284817,0.18369331,87046.0,87045.0,0.0002]
[1765946285028,0.1998101,87046.0,87045.0,0.0002]
[1765946285382,0.1998101,87046.0,87045.0,0.0012]
[1765946285970,0.1998101,87046.0,87045.0,0.0002]
[1765946288884,0.19860128,87046.0,87045.0,0.0002]
[1765946289519,0.1602201,87046.0,87045.0,0.0002]
[1765946289721,0.19475587,87046.0,87045.0,0.0002]
[1765946290823,0.08089577,87046.0,87045.0,0.0002]
[1765946291208,0.05473577,87046.0,87045.0,0.0002]
[1765946291452,0.03453577,87046.0,87045.0,0.0002]
[1765946292667,0.10028577,87046.0,87045.0,0.0002]
[1765946294502,0.1577152,87046.0,87045.0,0.0002]
[1765946296257,0.10028577,87046.0,87045.0,0.0002]
[1765946298078,0.03453577,87046.0,87045.0,0.00811002]
[1765946298335,0.03453577,87046.0,87045.0,0.0013858]
[1765946299136,0.22976319,87047.0,87045.0,0.0013858]
[1765946299137,0.22976319,87047.0,87046.0,0.02686]
[1765946299259,0.22976319,87047.0,87046.0,0.0649958]
[1765946300077,0.22976319,87047.0,87046.0,0.0011858]
[1765946301104,0.22976319,87047.0,87046.0,0.0649958]
[1765946302505,0.22976319,87047.0,87046.0,0.0659958]
[1765946305319,0.22976319,87047.0,87046.0,0.0290458]
[1765946305665,0.22976319,87047.0,87046.0,0.0021858]
[1765946307707,0.22976319,87047.0,87046.0,0.0290458]
[1765946307990,0.22976319,87047.0,87046.0,0.0659958]
[1765946308602,0.22976319,87047.0,87046.0,0.0754685]
[1765946308826,0.22976319,87047.0,87046.0,0.0659958]
[1765946309037,0.22976319,87047.0,87046.0,0.0021858]
[1765946310589,0.22976319,87047.0,87046.0,0.0659958]
[1765946311084,0.22976319,87047.0,87046.0,0.0290458]
[1765946311647,0.22976319,87047.0,87046.0,0.0659958]
[1765946311849,0.22976319,87047.0,87046.0,0.0290458]
[1765946313128,0.22976319,87047.0,87046.0,0.0743196]
[1765946313341,0.22976319,87047.0,87046.0,0.0659958]
[1765946321031,0.2412486,87048.0,87046.0,0.0659958]
[1765946321209,0.22975377,87050.0,87049.0,0.07586]
[1765946321394,0.22975377,87050.0,87049.0,0.0770458]
[1765946321738,0.22975377,87050.0,87049.0,0.14565041]
[1765946322352,0.01148751,87051.0,87050.0,0.06249]
[1765946322566,0.01148751,87051.0,87050.0,0.0636758]
[1765946322884,0.24123271,87053.0,87052.0,0.06249]
[1765946324062,0.24123271,87053.0,87052.0,0.06349]
[1765946325393,0.24123271,87053.0,87052.0,0.06449]
[1765946329145,0.24123271,87053.0,87052.0,0.02694]
[1765946329477,0.24123271,87053.0,87052.0,0.06449]
[1765946333077,0.24123271,87053.0,87052.0,0.02694]
[1765946333871,0.24123271,87053.0,87052.0,0.06449]
[1765946334050,0.24123271,87053.0,87052.0,0.02694]
[1765946334251,0.24123271,87053.0,87052.0,0.06449]
[1765946334604,0.24123271,87053.0,87052.0,0.02694]
[1765946335366,0.24123271,87053.0,87052.0,0.06449]
[1765946335988,0.24123271,87053.0,87052.0,0.02694]
[1765946336350,0.24123271,87053.0,87052.0,0.0656758]
[1765946338986,0.01148725,87053.0,87052.0,0.10865742]
[1765946339798,0.01148725,87053.0,87052.0,0.0656758]
[1765946342017,0.01148725,87053.0,87052.0,0.0031858]
[1765946343437,0.01148725,87053.0,87052.0,0.0656758]
[1765946343646,0.01148725,87053.0,87052.0,0.0281258]
[1765946343813,0.01148725,87053.0,87052.0,0.0031858]
[1765946345002,0.01148725,87053.0,87052.0,0.0593058]
[1765946345659,0.01148725,87053.0,87052.0,0.0263458]
[1765946345805,0.01148725,87053.0,87052.0,0.0593058]
[1765946346630,0.01148725,87053.0,87052.0,0.0263458]
[1765946347423,0.01148725,87053.0,87052.0,0.0031858]
[1765946348029,0.01148725,87053.0,87052.0,0.0263458]
[1765946348230,0.01148725,87053.0,87052.0,0.0593058]
[1765946351088,0.02003725,87053.0,87052.0,0.0031858]
[1765946351336,0.01148725,87053.0,87052.0,0.0031858]
[1765946353746,0.06826725,87053.0,87052.0,0.002]
[1765946354316,0.18212735,87053.0,87052.0,0.002]
[1765946354530,0.45867217,87053.0,87052.0,0.002]
[1765946354686,0.51276666,87053.0,87052.0,0.002]
[1765946355287,0.1706401,87046.0,87045.0,0.0002]
[1765946355493,0.19288331,87046.0,87045.0,0.0002]
[1765946355695,0.1888001,87046.0,87045.0,0.0002]
[1765946355959,0.22333551,87046.0,87045.0,0.0002]
[1765946356267,0.03453541,87046.0,87045.0,0.0002]
[1765946356542,0.05818541,87046.0,87045.0,0.0002]
[1765946356730,0.09131541,87046.0,87045.0,0.0002]
[1765946357276,0.15282805,87046.0,87045.0,0.0012]
[1765946357714,0.09539862,87046.0,87045.0,0.0012]
[1765946359388,0.09131541,87046.0,87045.0,0.0012]
[1765946360231,0.03453541,87046.0,87045.0,0.0012]
[1765946360870,0.09131541,87046.0,87045.0,0.0012]
[1765946364035,0.20517551,87046.0,87045.0,0.0012]
[1765946367702,0.20925872,87046.0,87045.0,0.0012]
[1765946368708,0.20925872,87046.0,87045.0,0.0002]
[1765946372069,0.09131541,87046.0,87045.0,0.0002]
[1765946373744,0.14874484,87046.0,87045.0,0.0002]
[1765946373896,0.09131541,87046.0,87045.0,0.0002]
[1765946374301,0.49995872,87046.0,87045.0,0.0002]
[1765946374531,0.49587551,87046.0,87045.0,0.0002]
[1765946376452,0.49687551,87046.0,87045.0,0.0002]
[1765946382195,0.5214846,87046.0,87045.0,0.0002]
[1765946384465,0.53217053,87046.0,87045.0,0.0002]
[1765946386330,0.5214846,87046.0,87045.0,0.0002]
[1765946391253,0.5224846,87046.0,87045.0,0.0002]
[1765946391710,0.5214846,87046.0,87045.0,0.0002]
[1765946392051,0.5234846,87046.0,87045.0,0.0002]
[1765946392247,0.63981575,87046.0,87045.0,0.0002]
[1765946392453,0.65049951,87046.0,87045.0,0.0002]
[1765946392765,0.53416836,87046.0,87045.0,0.0002]
[1765946396092,0.53416836,87046.0,87045.0,1e-08]
[1765946396307,0.4579401,87043.0,87042.0,1e-08]
[1765946396471,0.46862386,87043.0,87042.0,1e-08]
[1765946396685,0.8147265,87043.0,87042.0,1e-08]
[1765946396880,0.87387963,87043.0,87042.0,1e-08]
[1765946397322,0.68772215,87039.0,87038.0,1e-08]
[1765946397521,0.741175,87039.0,87038.0,1e-08]
[1765946397719,0.88479029,87039.0,87038.0,1e-08]
[1765946397921,0.9193389,87039.0,87038.0,1e-08]
[1765946398339,0.88857457,87039.0,87038.0,1e-08]
[1765946398535,0.89057457,87039.0,87038.0,1e-08]
[1765946398994,0.89057457,87039.0,87032.0,0.00029192]
[1765946398995,0.4579401,87033.0,87032.0,1e-08]
[1765946399213,2.11083495,87033.0,87032.0,1e-08]
[1765946399403,0.76078095,87033.0,87032.0,1e-08]
[1765946399547,0.80075744,87033.0,87032.0,1e-08]
[1765946400157,0.78259744,87033.0,87032.0,1e-08]
[1765946400361,0.87373759,87033.0,87032.0,1e-08]
[1765946400602,0.77556644,87033.0,87032.0,1e-08]
[1765946400809,0.77756644,87033.0,87032.0,1e-08]
[1765946401010,0.77956644,87033.0,87032.0,1e-08]
[1765946401219,0.54994244,87033.0,87032.0,1e-08]
[1765946401535,0.51464959,87033.0,87032.0,1e-08]
[1765946402238,0.51264959,87033.0,87032.0,1e-08]
[1765946402482,0.51064959,87033.0,87032.0,1e-08]
[1765946402704,0.51164959,87033.0,87032.0,1e-08]
[1765946402935,0.49348959,87033.0,87032.0,1e-08]
[1765946403169,0.51193517,87033.0,87032.0,1e-08]
[1765946403401,0.51193517,87033.0,87032.0,0.00031533]
[1765946406563,0.52261346,87033.0,87032.0,0.00031533]
[1765946407288,0.5226147,87033.0,87032.0,0.00031533]
[1765946407495,0.51193517,87033.0,87032.0,0.00031533]
[1765946407915,0.62826632,87033.0,87032.0,0.00031533]
[1765946408152,0.61010632,87033.0,87032.0,0.00031533]
[1765946408360,0.62826632,87033.0,87032.0,0.00031533]
[1765946408519,0.03583507,87033.0,87032.0,0.00031533]
[1765946408728,0.05399507,87033.0,87032.0,0.00031533]
[1765946409295,0.05216558,87033.0,87032.0,0.00031533]
[1765946409486,0.07506558,87033.0,87032.0,0.00031533]
[1765946409689,0.07506558,87033.0,87032.0,0.00131533]
[1765946410227,0.01844558,87033.0,87032.0,0.00131533]
[1765946410427,0.07406558,87033.0,87032.0,0.00131533]
[1765946410719,0.00028558,87033.0,87032.0,0.07562113]
[1765946410897,0.23008347,87033.0,87032.0,0.08465924]
[1765946411094,0.23008347,87033.0,87032.0,0.07562113]
[1765946411720,0.00028558,87033.0,87032.0,0.07462113]
[1765946411950,0.00028558,87033.0,87032.0,0.08840916]
[1765946412087,0.00028558,87033.0,87032.0,0.264058]
[1765946412308,0.24121709,87059.0,87058.0,0.0572]
[1765946412513,0.24121017,87061.0,87060.0,0.01622]
[1765946412713,0.22972926,87059.0,87058.0,0.0011858]
[1765946414113,0.23072926,87059.0,87058.0,0.0011858]
[1765946414387,0.001,87059.0,87058.0,0.0237358]
[1765946414553,0.001,87059.0,87058.0,0.31768169]
[1765946414768,0.001,87059.0,87058.0,0.0011858]
[1765946414960,0.23072926,87059.0,87058.0,0.0011858]
[1765946415487,0.23072926,87059.0,87058.0,0.0041858]
[1765946417844,0.001,87059.0,87058.0,0.0613858]
[1765946418257,0.001,87059.0,87058.0,0.07403854]
[1765946419615,0.001,87059.0,87058.0,0.0613858]
[1765946420947,0.001,87059.0,87058.0,0.30490161]
[1765946421155,0.001,87059.0,87058.0,0.2911177]
[1765946422318,0.001,87059.0,87058.0,0.17492661]
[1765946425142,0.001,87059.0,87058.0,0.0613858]
[1765946425391,0.001,87059.0,87058.0,0.2606151]
[1765946425749,0.001,87059.0,87058.0,0.17492661]
[1765946426105,0.01148527,87068.0,87067.0,0.07264]
[1765946427401,0.01148527,87068.0,87062.0,0.07236]
[1765946427402,0.24120463,87063.0,87062.0,0.07236]
[1765946428989,0.22971409,87065.0,87064.0,0.0572]
[1765946429979,0.01816,87077.0,87065.0,0.22971085]
[1765946429980,0.24118647,87070.0,87065.0,0.22971085]
[1765946430151,0.01148501,87070.0,87069.0,0.0572]
[1765946431907,0.01148501,87070.0,87069.0,0.0602]
[1765946432312,0.24116533,87078.0,87077.0,0.02255]
[1765946432519,0.01148474,87072.0,87069.0,0.0041858]
[1765946432731,0.22970024,87070.0,87069.0,0.0041858]
[1765946433377,0.22970024,87070.0,87069.0,0.0011858]
[1765946433756,0.22970024,87070.0,87069.0,0.0031858]
[1765946433984,0.22970024,87070.0,87069.0,0.0603858]
[1765946434184,0.24118205,87072.0,87071.0,0.05547]
[1765946434959,0.01148474,87072.0,87071.0,0.05547]
[1765946435485,0.01148474,87072.0,87071.0,0.11141805]
[1765946435716,0.01148474,87072.0,87071.0,0.11241805]
[1765946436128,0.01148474,87072.0,87071.0,0.11541805]
[1765946436300,0.01148474,87072.0,87071.0,0.11660385]
[1765946436721,0.27568564,87077.0,87071.0,0.11660385]
[1765946436722,0.27568564,87077.0,87076.0,0.03698]
[1765946436924,0.22967676,87079.0,87077.0,0.022]
[1765946437133,0.0345184,87082.0,87081.0,0.03633]
[1765946437338,0.24114941,87083.0,87082.0,0.022]
[1765946437542,0.22967913,87078.0,87077.0,0.0011858]
[1765946438118,0.22967913,87078.0,87077.0,0.0231858]
[1765946438325,0.22967913,87078.0,87077.0,0.0535458]
[1765946439075,0.22967913,87078.0,87077.0,0.0565458]
[1765946439279,0.24114941,87083.0,87082.0,0.022]
[1765946439540,0.01148329,87083.0,87082.0,0.05236]
[1765946440124,0.01148329,87083.0,87082.0,0.022]
[1765946440324,0.2296765,87079.0,87077.0,0.0345458]
[1765946440487,0.2296765,87079.0,87078.0,0.05236]
[1765946440691,0.2296765,87079.0,87078.0,0.0535458]
[1765946441051,0.2296765,87079.0,87078.0,0.0011858]
[1765946442227,0.2296765,87079.0,87078.0,0.0261858]